{"text_format":"1","workbook":"xlsx","n_sheets":3,"sheets":["PivotT","Chart2","Chart3"],"not_rendered":{"charts":4,"images":0,"macros":1,"external_links":0,"defined_names":59,"comments":0,"pivot_tables":3},"unopened":[{"sheet":"Chart2","index":1,"reason":"not_a_worksheet"},{"sheet":"Chart3","index":2,"reason":"not_a_worksheet"}],"bounds":{"document_bytes":16777216,"sheet_cells":100000,"rows_first":2000,"rows_last":500,"rows_between":2000,"halvings":0,"cell_chars":16384,"cell_head_chars":4096},"cells_cut":0,"cells_raw":0,"read":"whole","date_system":"1900"}

{"sheet":"PivotT","index":0,"n_rows":129,"n_cols":26,"rows_kept":129,"cut":false,"hidden":false,"merged":[]}
[]
[]
[null,"Table1",null,null,null,"PivotTable1",null,null,null,null,null,"Table2",null,null,null,null,null,null,null,null,null,null,null,null,null,"Table5"]
[null,"NName","Q_1","Q_2",null,null,"Values",null,null,null,null,"N2_x","N2_y","A2_x","A2_y","N1_x","N1_y","A1_x","A1_y",null,null,null,null,null,null,"Bias"]
[null,"Williams",{"$f":"INDEX(Table5[Bias],RANDBETWEEN(1,4))","v":1},{"$f":"INDEX(Table5[Bias],RANDBETWEEN(1,4))","v":1},null,"Q_1","Count","%_Count",null,null,null,0,{"$f":"-A_1","v":-0.72},0,{"$f":"N_1","v":0.28000000000000003},{"$f":"-N_2","v":-0.26400000000000001},0,{"$f":"A_2","v":0.73599999999999999},0,null,null,null,null,null,null,1]
[null,"Martin",{"$f":"INDEX(Table5[Bias],RANDBETWEEN(1,4))","v":0},{"$f":"INDEX(Table5[Bias],RANDBETWEEN(1,4))","v":0},null,1,90,0.72,"A_1",null,null,{"$f":"-N_2","v":-0.26400000000000001},{"$f":"-A_1","v":-0.72},{"$f":"A_2","v":0.73599999999999999},{"$f":"N_1","v":0.28000000000000003},{"$f":"-N_2","v":-0.26400000000000001},{"$f":"N_1","v":0.28000000000000003},{"$f":"A_2","v":0.73599999999999999},{"$f":"-A_1","v":-0.72},null,null,null,null,null,null,1]
[null,"Lee",{"$f":"INDEX(Table5[Bias],RANDBETWEEN(1,4))","v":1},{"$f":"INDEX(Table5[Bias],RANDBETWEEN(1,4))","v":1},null,0,35,0.28000000000000003,"N_1",null,null,{"$f":"-N_2","v":-0.26400000000000001},{"$f":"N_1","v":0.28000000000000003},{"$f":"A_2","v":0.73599999999999999},{"$f":"-A_1","v":-0.72},{"$f":"A_2","v":0.73599999999999999},{"$f":"N_1","v":0.28000000000000003},{"$f":"-N_2","v":-0.26400000000000001},{"$f":"-A_1","v":-0.72},null,null,null,null,null,null,1]
[null,"Sanchez",{"$f":"INDEX(Table5[Bias],RANDBETWEEN(1,4))","v":1},{"$f":"INDEX(Table5[Bias],RANDBETWEEN(1,4))","v":1},null,"Grand Total",125,1,null,null,null,0,{"$f":"N_1","v":0.28000000000000003},0,{"$f":"-A_1","v":-0.72},{"$f":"A_2","v":0.73599999999999999},0,{"$f":"-N_2","v":-0.26400000000000001},0,null,null,null,null,null,null,0]
[null,"Brooks",{"$f":"INDEX(Table5[Bias],RANDBETWEEN(1,4))","v":1},{"$f":"INDEX(Table5[Bias],RANDBETWEEN(1,4))","v":1},null,null,null,null,null,null,null,0,{"$f":"-A_1","v":-0.72},0,{"$f":"N_1","v":0.28000000000000003},{"$f":"-N_2","v":-0.26400000000000001},0,{"$f":"A_2","v":0.73599999999999999},0]
[null,"Hughes",{"$f":"INDEX(Table5[Bias],RANDBETWEEN(1,4))","v":1},{"$f":"INDEX(Table5[Bias],RANDBETWEEN(1,4))","v":1}]
[null,"Sullivan",{"$f":"INDEX(Table5[Bias],RANDBETWEEN(1,4))","v":1},{"$f":"INDEX(Table5[Bias],RANDBETWEEN(1,4))","v":1},null,"PivotTable2"]
[null,"Reynolds",{"$f":"INDEX(Table5[Bias],RANDBETWEEN(1,4))","v":0},{"$f":"INDEX(Table5[Bias],RANDBETWEEN(1,4))","v":1},null,null,"Values"]
[null,"Cruz",{"$f":"INDEX(Table5[Bias],RANDBETWEEN(1,4))","v":1},{"$f":"INDEX(Table5[Bias],RANDBETWEEN(1,4))","v":1},null,"Q_2","Count of Q_2","%_Count"]
[null,"Ellis",{"$f":"INDEX(Table5[Bias],RANDBETWEEN(1,4))","v":1},{"$f":"INDEX(Table5[Bias],RANDBETWEEN(1,4))","v":1},null,1,92,0.73599999999999999,"A_2"]
[null,"Hernandez",{"$f":"INDEX(Table5[Bias],RANDBETWEEN(1,4))","v":0},{"$f":"INDEX(Table5[Bias],RANDBETWEEN(1,4))","v":1},null,0,33,0.26400000000000001,"N_2"]
[null,"Young",{"$f":"INDEX(Table5[Bias],RANDBETWEEN(1,4))","v":1},{"$f":"INDEX(Table5[Bias],RANDBETWEEN(1,4))","v":1},null,"Grand Total",125,1]
[null,"Campbell",{"$f":"INDEX(Table5[Bias],RANDBETWEEN(1,4))","v":1},{"$f":"INDEX(Table5[Bias],RANDBETWEEN(1,4))","v":1}]
[null,"Hamilton",{"$f":"INDEX(Table5[Bias],RANDBETWEEN(1,4))","v":1},{"$f":"INDEX(Table5[Bias],RANDBETWEEN(1,4))","v":1}]
[null,"Wells",{"$f":"INDEX(Table5[Bias],RANDBETWEEN(1,4))","v":1},{"$f":"INDEX(Table5[Bias],RANDBETWEEN(1,4))","v":1}]
[null,"Davis",{"$f":"INDEX(Table5[Bias],RANDBETWEEN(1,4))","v":1},{"$f":"INDEX(Table5[Bias],RANDBETWEEN(1,4))","v":1},null,"PivotTable3",null,null,null,null,null,"Table3"]
[null,"Stewart",{"$f":"INDEX(Table5[Bias],RANDBETWEEN(1,4))","v":1},{"$f":"INDEX(Table5[Bias],RANDBETWEEN(1,4))","v":1},null,null,null,"Values",null,null,null,"N2_x","N2_y","A2_x","A2_y","N1_x","N1_y","A1_x","A1_y"]
[null,"Bell",{"$f":"INDEX(Table5[Bias],RANDBETWEEN(1,4))","v":1},{"$f":"INDEX(Table5[Bias],RANDBETWEEN(1,4))","v":1},null,"Q_1","Q_2","_Count","%_Count",null,null,0,0,0,0,0,0,0,0]
[null,"Washington",{"$f":"INDEX(Table5[Bias],RANDBETWEEN(1,4))","v":0},{"$f":"INDEX(Table5[Bias],RANDBETWEEN(1,4))","v":1},null,1,1,65,0.52,"YYa",null,{"$f":"-SQRT(NNa)","v":-0.25298221281347033},0,{"$f":"-NYa/SQRT(YYa)","v":-0.29953810596162372},0,{"$f":"SQRT(YYa)","v":0.72111025509279791},0,{"$f":"SQRT(YYa)","v":0.72111025509279791},0]
[null,"Smith",{"$f":"INDEX(Table5[Bias],RANDBETWEEN(1,4))","v":0},{"$f":"INDEX(Table5[Bias],RANDBETWEEN(1,4))","v":1},null,null,0,25,0.2,"YNa",null,{"$f":"-SQRT(NNa)","v":-0.25298221281347033},{"$f":"SQRT(NNa)","v":0.25298221281347033},{"$f":"-NYa/SQRT(YYa)","v":-0.29953810596162372},{"$f":"-SQRT(YYa)","v":-0.72111025509279791},{"$f":"SQRT(YYa)","v":0.72111025509279791},{"$f":"YNa/SQRT(YYa)","v":0.27735009811261457},{"$f":"SQRT(YYa)","v":0.72111025509279791},{"$f":"-SQRT(YYa)","v":-0.72111025509279791}]
[null,"Gray",{"$f":"INDEX(Table5[Bias],RANDBETWEEN(1,4))","v":1},{"$f":"INDEX(Table5[Bias],RANDBETWEEN(1,4))","v":1},null,0,1,27,0.216,"NYa",null,0,{"$f":"SQRT(NNa)","v":0.25298221281347033},0,{"$f":"-SQRT(YYa)","v":-0.72111025509279791},0,{"$f":"YNa/SQRT(YYa)","v":0.27735009811261457},0,{"$f":"-SQRT(YYa)","v":-0.72111025509279791}]
[null,"Bryant",{"$f":"INDEX(Table5[Bias],RANDBETWEEN(1,4))","v":1},{"$f":"INDEX(Table5[Bias],RANDBETWEEN(1,4))","v":1},null,null,0,8,6.4000000000000001E-2,"NNa",null,0,0,0,0,0,0,0,0]
[null,"Nelson",{"$f":"INDEX(Table5[Bias],RANDBETWEEN(1,4))","v":1},{"$f":"INDEX(Table5[Bias],RANDBETWEEN(1,4))","v":1},null,"Grand Total",null,125,1]
[null,"Richardson",{"$f":"INDEX(Table5[Bias],RANDBETWEEN(1,4))","v":1},{"$f":"INDEX(Table5[Bias],RANDBETWEEN(1,4))","v":1}]
[null,"Wallace",{"$f":"INDEX(Table5[Bias],RANDBETWEEN(1,4))","v":0},{"$f":"INDEX(Table5[Bias],RANDBETWEEN(1,4))","v":1}]
[null,"Webb",{"$f":"INDEX(Table5[Bias],RANDBETWEEN(1,4))","v":0},{"$f":"INDEX(Table5[Bias],RANDBETWEEN(1,4))","v":1}]
[null,"Morales",{"$f":"INDEX(Table5[Bias],RANDBETWEEN(1,4))","v":1},{"$f":"INDEX(Table5[Bias],RANDBETWEEN(1,4))","v":1}]
[null,"Harris",{"$f":"INDEX(Table5[Bias],RANDBETWEEN(1,4))","v":0},{"$f":"INDEX(Table5[Bias],RANDBETWEEN(1,4))","v":1}]
[null,"Morris",{"$f":"INDEX(Table5[Bias],RANDBETWEEN(1,4))","v":1},{"$f":"INDEX(Table5[Bias],RANDBETWEEN(1,4))","v":1}]
[null,"Roberts",{"$f":"INDEX(Table5[Bias],RANDBETWEEN(1,4))","v":1},{"$f":"INDEX(Table5[Bias],RANDBETWEEN(1,4))","v":0}]
[null,"Harrison",{"$f":"INDEX(Table5[Bias],RANDBETWEEN(1,4))","v":1},{"$f":"INDEX(Table5[Bias],RANDBETWEEN(1,4))","v":1}]
[null,"Bailey",{"$f":"INDEX(Table5[Bias],RANDBETWEEN(1,4))","v":1},{"$f":"INDEX(Table5[Bias],RANDBETWEEN(1,4))","v":1}]
[null,"Barnes",{"$f":"INDEX(Table5[Bias],RANDBETWEEN(1,4))","v":1},{"$f":"INDEX(Table5[Bias],RANDBETWEEN(1,4))","v":0}]
[null,"Gonzales",{"$f":"INDEX(Table5[Bias],RANDBETWEEN(1,4))","v":0},{"$f":"INDEX(Table5[Bias],RANDBETWEEN(1,4))","v":0}]
[null,"Thompson",{"$f":"INDEX(Table5[Bias],RANDBETWEEN(1,4))","v":1},{"$f":"INDEX(Table5[Bias],RANDBETWEEN(1,4))","v":0}]
[null,"Clark",{"$f":"INDEX(Table5[Bias],RANDBETWEEN(1,4))","v":1},{"$f":"INDEX(Table5[Bias],RANDBETWEEN(1,4))","v":1}]
[null,"Wright",{"$f":"INDEX(Table5[Bias],RANDBETWEEN(1,4))","v":1},{"$f":"INDEX(Table5[Bias],RANDBETWEEN(1,4))","v":1}]
[null,"Price",{"$f":"INDEX(Table5[Bias],RANDBETWEEN(1,4))","v":0},{"$f":"INDEX(Table5[Bias],RANDBETWEEN(1,4))","v":0}]
[null,"Griffin",{"$f":"INDEX(Table5[Bias],RANDBETWEEN(1,4))","v":1},{"$f":"INDEX(Table5[Bias],RANDBETWEEN(1,4))","v":1}]
[null,"Peterson",{"$f":"INDEX(Table5[Bias],RANDBETWEEN(1,4))","v":1},{"$f":"INDEX(Table5[Bias],RANDBETWEEN(1,4))","v":1}]
[null,"Marshall",{"$f":"INDEX(Table5[Bias],RANDBETWEEN(1,4))","v":0},{"$f":"INDEX(Table5[Bias],RANDBETWEEN(1,4))","v":1}]
[null,"Johnson",{"$f":"INDEX(Table5[Bias],RANDBETWEEN(1,4))","v":1},{"$f":"INDEX(Table5[Bias],RANDBETWEEN(1,4))","v":1}]
[null,"Kelly",{"$f":"INDEX(Table5[Bias],RANDBETWEEN(1,4))","v":0},{"$f":"INDEX(Table5[Bias],RANDBETWEEN(1,4))","v":1}]
[null,"Miller",{"$f":"INDEX(Table5[Bias],RANDBETWEEN(1,4))","v":0},{"$f":"INDEX(Table5[Bias],RANDBETWEEN(1,4))","v":1}]
[null,"Reed",{"$f":"INDEX(Table5[Bias],RANDBETWEEN(1,4))","v":1},{"$f":"INDEX(Table5[Bias],RANDBETWEEN(1,4))","v":0}]
[null,"Martinez",{"$f":"INDEX(Table5[Bias],RANDBETWEEN(1,4))","v":1},{"$f":"INDEX(Table5[Bias],RANDBETWEEN(1,4))","v":1}]
[null,"Hicks",{"$f":"INDEX(Table5[Bias],RANDBETWEEN(1,4))","v":1},{"$f":"INDEX(Table5[Bias],RANDBETWEEN(1,4))","v":1}]
[null,"Boyd",{"$f":"INDEX(Table5[Bias],RANDBETWEEN(1,4))","v":0},{"$f":"INDEX(Table5[Bias],RANDBETWEEN(1,4))","v":1}]
[null,"James",{"$f":"INDEX(Table5[Bias],RANDBETWEEN(1,4))","v":1},{"$f":"INDEX(Table5[Bias],RANDBETWEEN(1,4))","v":1}]
[null,"Henderson",{"$f":"INDEX(Table5[Bias],RANDBETWEEN(1,4))","v":1},{"$f":"INDEX(Table5[Bias],RANDBETWEEN(1,4))","v":1}]
[null,"Baker",{"$f":"INDEX(Table5[Bias],RANDBETWEEN(1,4))","v":1},{"$f":"INDEX(Table5[Bias],RANDBETWEEN(1,4))","v":1}]
[null,"Alexander",{"$f":"INDEX(Table5[Bias],RANDBETWEEN(1,4))","v":1},{"$f":"INDEX(Table5[Bias],RANDBETWEEN(1,4))","v":1}]
[null,"Owens",{"$f":"INDEX(Table5[Bias],RANDBETWEEN(1,4))","v":1},{"$f":"INDEX(Table5[Bias],RANDBETWEEN(1,4))","v":0}]
[null,"Gomez",{"$f":"INDEX(Table5[Bias],RANDBETWEEN(1,4))","v":1},{"$f":"INDEX(Table5[Bias],RANDBETWEEN(1,4))","v":1}]
[null,"Freeman",{"$f":"INDEX(Table5[Bias],RANDBETWEEN(1,4))","v":0},{"$f":"INDEX(Table5[Bias],RANDBETWEEN(1,4))","v":0}]
[null,"Ross",{"$f":"INDEX(Table5[Bias],RANDBETWEEN(1,4))","v":1},{"$f":"INDEX(Table5[Bias],RANDBETWEEN(1,4))","v":1}]
[null,"Perez",{"$f":"INDEX(Table5[Bias],RANDBETWEEN(1,4))","v":1},{"$f":"INDEX(Table5[Bias],RANDBETWEEN(1,4))","v":1}]
[null,"Jackson",{"$f":"INDEX(Table5[Bias],RANDBETWEEN(1,4))","v":1},{"$f":"INDEX(Table5[Bias],RANDBETWEEN(1,4))","v":1}]
[null,"Hunter",{"$f":"INDEX(Table5[Bias],RANDBETWEEN(1,4))","v":1},{"$f":"INDEX(Table5[Bias],RANDBETWEEN(1,4))","v":0}]
[null,"Adams",{"$f":"INDEX(Table5[Bias],RANDBETWEEN(1,4))","v":0},{"$f":"INDEX(Table5[Bias],RANDBETWEEN(1,4))","v":1}]
[null,"Wood",{"$f":"INDEX(Table5[Bias],RANDBETWEEN(1,4))","v":1},{"$f":"INDEX(Table5[Bias],RANDBETWEEN(1,4))","v":1}]
[null,"Morgan",{"$f":"INDEX(Table5[Bias],RANDBETWEEN(1,4))","v":0},{"$f":"INDEX(Table5[Bias],RANDBETWEEN(1,4))","v":1}]
[null,"Coleman",{"$f":"INDEX(Table5[Bias],RANDBETWEEN(1,4))","v":1},{"$f":"INDEX(Table5[Bias],RANDBETWEEN(1,4))","v":1}]
[null,"Diaz",{"$f":"INDEX(Table5[Bias],RANDBETWEEN(1,4))","v":1},{"$f":"INDEX(Table5[Bias],RANDBETWEEN(1,4))","v":1}]
[null,"Rivera",{"$f":"INDEX(Table5[Bias],RANDBETWEEN(1,4))","v":1},{"$f":"INDEX(Table5[Bias],RANDBETWEEN(1,4))","v":0}]
[null,"Simpson",{"$f":"INDEX(Table5[Bias],RANDBETWEEN(1,4))","v":1},{"$f":"INDEX(Table5[Bias],RANDBETWEEN(1,4))","v":0}]
[null,"Crawford",{"$f":"INDEX(Table5[Bias],RANDBETWEEN(1,4))","v":1},{"$f":"INDEX(Table5[Bias],RANDBETWEEN(1,4))","v":1}]
[null,"Robinson",{"$f":"INDEX(Table5[Bias],RANDBETWEEN(1,4))","v":1},{"$f":"INDEX(Table5[Bias],RANDBETWEEN(1,4))","v":1}]
[null,"Sanders",{"$f":"INDEX(Table5[Bias],RANDBETWEEN(1,4))","v":1},{"$f":"INDEX(Table5[Bias],RANDBETWEEN(1,4))","v":1}]
[null,"Jones",{"$f":"INDEX(Table5[Bias],RANDBETWEEN(1,4))","v":1},{"$f":"INDEX(Table5[Bias],RANDBETWEEN(1,4))","v":1}]
[null,"Moore",{"$f":"INDEX(Table5[Bias],RANDBETWEEN(1,4))","v":1},{"$f":"INDEX(Table5[Bias],RANDBETWEEN(1,4))","v":1}]
[null,"Anderson",{"$f":"INDEX(Table5[Bias],RANDBETWEEN(1,4))","v":1},{"$f":"INDEX(Table5[Bias],RANDBETWEEN(1,4))","v":1}]
[null,"Butler",{"$f":"INDEX(Table5[Bias],RANDBETWEEN(1,4))","v":0},{"$f":"INDEX(Table5[Bias],RANDBETWEEN(1,4))","v":0}]
[null,"Collins",{"$f":"INDEX(Table5[Bias],RANDBETWEEN(1,4))","v":1},{"$f":"INDEX(Table5[Bias],RANDBETWEEN(1,4))","v":1}]
[null,"Garcia",{"$f":"INDEX(Table5[Bias],RANDBETWEEN(1,4))","v":1},{"$f":"INDEX(Table5[Bias],RANDBETWEEN(1,4))","v":0}]
[null,"Powell",{"$f":"INDEX(Table5[Bias],RANDBETWEEN(1,4))","v":1},{"$f":"INDEX(Table5[Bias],RANDBETWEEN(1,4))","v":0}]
[null,"Henry",{"$f":"INDEX(Table5[Bias],RANDBETWEEN(1,4))","v":1},{"$f":"INDEX(Table5[Bias],RANDBETWEEN(1,4))","v":0}]
[null,"Rogers",{"$f":"INDEX(Table5[Bias],RANDBETWEEN(1,4))","v":1},{"$f":"INDEX(Table5[Bias],RANDBETWEEN(1,4))","v":1}]
[null,"Patterson",{"$f":"INDEX(Table5[Bias],RANDBETWEEN(1,4))","v":0},{"$f":"INDEX(Table5[Bias],RANDBETWEEN(1,4))","v":0}]
[null,"Jordan",{"$f":"INDEX(Table5[Bias],RANDBETWEEN(1,4))","v":1},{"$f":"INDEX(Table5[Bias],RANDBETWEEN(1,4))","v":1}]
[null,"Mcdonald",{"$f":"INDEX(Table5[Bias],RANDBETWEEN(1,4))","v":0},{"$f":"INDEX(Table5[Bias],RANDBETWEEN(1,4))","v":1}]
[null,"Scott",{"$f":"INDEX(Table5[Bias],RANDBETWEEN(1,4))","v":1},{"$f":"INDEX(Table5[Bias],RANDBETWEEN(1,4))","v":1}]
[null,"Thomas",{"$f":"INDEX(Table5[Bias],RANDBETWEEN(1,4))","v":1},{"$f":"INDEX(Table5[Bias],RANDBETWEEN(1,4))","v":1}]
[null,"Bennett",{"$f":"INDEX(Table5[Bias],RANDBETWEEN(1,4))","v":1},{"$f":"INDEX(Table5[Bias],RANDBETWEEN(1,4))","v":0}]
[null,"Gonzalez",{"$f":"INDEX(Table5[Bias],RANDBETWEEN(1,4))","v":1},{"$f":"INDEX(Table5[Bias],RANDBETWEEN(1,4))","v":1}]
[null,"Russell",{"$f":"INDEX(Table5[Bias],RANDBETWEEN(1,4))","v":0},{"$f":"INDEX(Table5[Bias],RANDBETWEEN(1,4))","v":1}]
[null,"Cook",{"$f":"INDEX(Table5[Bias],RANDBETWEEN(1,4))","v":0},{"$f":"INDEX(Table5[Bias],RANDBETWEEN(1,4))","v":1}]
[null,"Green",{"$f":"INDEX(Table5[Bias],RANDBETWEEN(1,4))","v":1},{"$f":"INDEX(Table5[Bias],RANDBETWEEN(1,4))","v":0}]
[null,"Turner",{"$f":"INDEX(Table5[Bias],RANDBETWEEN(1,4))","v":1},{"$f":"INDEX(Table5[Bias],RANDBETWEEN(1,4))","v":1}]
[null,"Evans",{"$f":"INDEX(Table5[Bias],RANDBETWEEN(1,4))","v":1},{"$f":"INDEX(Table5[Bias],RANDBETWEEN(1,4))","v":1}]
[null,"Tucker",{"$f":"INDEX(Table5[Bias],RANDBETWEEN(1,4))","v":1},{"$f":"INDEX(Table5[Bias],RANDBETWEEN(1,4))","v":1}]
[null,"Walker",{"$f":"INDEX(Table5[Bias],RANDBETWEEN(1,4))","v":1},{"$f":"INDEX(Table5[Bias],RANDBETWEEN(1,4))","v":1}]
[null,"Murphy",{"$f":"INDEX(Table5[Bias],RANDBETWEEN(1,4))","v":1},{"$f":"INDEX(Table5[Bias],RANDBETWEEN(1,4))","v":1}]
[null,"Cooper",{"$f":"INDEX(Table5[Bias],RANDBETWEEN(1,4))","v":1},{"$f":"INDEX(Table5[Bias],RANDBETWEEN(1,4))","v":1}]
[null,"Mason",{"$f":"INDEX(Table5[Bias],RANDBETWEEN(1,4))","v":1},{"$f":"INDEX(Table5[Bias],RANDBETWEEN(1,4))","v":1}]
[null,"Flores",{"$f":"INDEX(Table5[Bias],RANDBETWEEN(1,4))","v":1},{"$f":"INDEX(Table5[Bias],RANDBETWEEN(1,4))","v":1}]
[null,"Fisher",{"$f":"INDEX(Table5[Bias],RANDBETWEEN(1,4))","v":1},{"$f":"INDEX(Table5[Bias],RANDBETWEEN(1,4))","v":1}]
[null,"Murray",{"$f":"INDEX(Table5[Bias],RANDBETWEEN(1,4))","v":1},{"$f":"INDEX(Table5[Bias],RANDBETWEEN(1,4))","v":1}]
[null,"Jenkins",{"$f":"INDEX(Table5[Bias],RANDBETWEEN(1,4))","v":1},{"$f":"INDEX(Table5[Bias],RANDBETWEEN(1,4))","v":1}]
[null,"West",{"$f":"INDEX(Table5[Bias],RANDBETWEEN(1,4))","v":0},{"$f":"INDEX(Table5[Bias],RANDBETWEEN(1,4))","v":1}]
[null,"Ortiz",{"$f":"INDEX(Table5[Bias],RANDBETWEEN(1,4))","v":1},{"$f":"INDEX(Table5[Bias],RANDBETWEEN(1,4))","v":1}]
[null,"Lewis",{"$f":"INDEX(Table5[Bias],RANDBETWEEN(1,4))","v":1},{"$f":"INDEX(Table5[Bias],RANDBETWEEN(1,4))","v":0}]
[null,"Lopez",{"$f":"INDEX(Table5[Bias],RANDBETWEEN(1,4))","v":1},{"$f":"INDEX(Table5[Bias],RANDBETWEEN(1,4))","v":0}]
[null,"Hill",{"$f":"INDEX(Table5[Bias],RANDBETWEEN(1,4))","v":1},{"$f":"INDEX(Table5[Bias],RANDBETWEEN(1,4))","v":1}]
[null,"Rodriguez",{"$f":"INDEX(Table5[Bias],RANDBETWEEN(1,4))","v":1},{"$f":"INDEX(Table5[Bias],RANDBETWEEN(1,4))","v":1}]
[null,"Phillips",{"$f":"INDEX(Table5[Bias],RANDBETWEEN(1,4))","v":1},{"$f":"INDEX(Table5[Bias],RANDBETWEEN(1,4))","v":1}]
[null,"Watson",{"$f":"INDEX(Table5[Bias],RANDBETWEEN(1,4))","v":0},{"$f":"INDEX(Table5[Bias],RANDBETWEEN(1,4))","v":1}]
[null,"Long",{"$f":"INDEX(Table5[Bias],RANDBETWEEN(1,4))","v":1},{"$f":"INDEX(Table5[Bias],RANDBETWEEN(1,4))","v":1}]
[null,"Foster",{"$f":"INDEX(Table5[Bias],RANDBETWEEN(1,4))","v":0},{"$f":"INDEX(Table5[Bias],RANDBETWEEN(1,4))","v":1}]
[null,"Mitchell",{"$f":"INDEX(Table5[Bias],RANDBETWEEN(1,4))","v":0},{"$f":"INDEX(Table5[Bias],RANDBETWEEN(1,4))","v":1}]
[null,"Stevens",{"$f":"INDEX(Table5[Bias],RANDBETWEEN(1,4))","v":1},{"$f":"INDEX(Table5[Bias],RANDBETWEEN(1,4))","v":1}]
[null,"Taylor",{"$f":"INDEX(Table5[Bias],RANDBETWEEN(1,4))","v":0},{"$f":"INDEX(Table5[Bias],RANDBETWEEN(1,4))","v":0}]
[null,"Carter",{"$f":"INDEX(Table5[Bias],RANDBETWEEN(1,4))","v":1},{"$f":"INDEX(Table5[Bias],RANDBETWEEN(1,4))","v":1}]
[null,"Parker",{"$f":"INDEX(Table5[Bias],RANDBETWEEN(1,4))","v":1},{"$f":"INDEX(Table5[Bias],RANDBETWEEN(1,4))","v":1}]
[null,"Cox",{"$f":"INDEX(Table5[Bias],RANDBETWEEN(1,4))","v":1},{"$f":"INDEX(Table5[Bias],RANDBETWEEN(1,4))","v":1}]
[null,"Howard",{"$f":"INDEX(Table5[Bias],RANDBETWEEN(1,4))","v":1},{"$f":"INDEX(Table5[Bias],RANDBETWEEN(1,4))","v":1}]
[null,"Perry",{"$f":"INDEX(Table5[Bias],RANDBETWEEN(1,4))","v":1},{"$f":"INDEX(Table5[Bias],RANDBETWEEN(1,4))","v":0}]
[null,"Simmons",{"$f":"INDEX(Table5[Bias],RANDBETWEEN(1,4))","v":0},{"$f":"INDEX(Table5[Bias],RANDBETWEEN(1,4))","v":0}]
[null,"Graham",{"$f":"INDEX(Table5[Bias],RANDBETWEEN(1,4))","v":1},{"$f":"INDEX(Table5[Bias],RANDBETWEEN(1,4))","v":0}]
[null,"Ward",{"$f":"INDEX(Table5[Bias],RANDBETWEEN(1,4))","v":1},{"$f":"INDEX(Table5[Bias],RANDBETWEEN(1,4))","v":1}]
[null,"Brown",{"$f":"INDEX(Table5[Bias],RANDBETWEEN(1,4))","v":1},{"$f":"INDEX(Table5[Bias],RANDBETWEEN(1,4))","v":1}]
[null,"Myers",{"$f":"INDEX(Table5[Bias],RANDBETWEEN(1,4))","v":1},{"$f":"INDEX(Table5[Bias],RANDBETWEEN(1,4))","v":1}]
[null,"Torres",{"$f":"INDEX(Table5[Bias],RANDBETWEEN(1,4))","v":1},{"$f":"INDEX(Table5[Bias],RANDBETWEEN(1,4))","v":1}]
[null,"White",{"$f":"INDEX(Table5[Bias],RANDBETWEEN(1,4))","v":1},{"$f":"INDEX(Table5[Bias],RANDBETWEEN(1,4))","v":1}]
[null,"Ford",{"$f":"INDEX(Table5[Bias],RANDBETWEEN(1,4))","v":0},{"$f":"INDEX(Table5[Bias],RANDBETWEEN(1,4))","v":1}]